{"text_format":"3","workbook":"xlsx","n_sheets":2,"sheets":["Tóm tắt Ngân sách","Chi tiết Ngân sách"],"not_rendered":{"images":1,"defined_names":1},"read":"whole","date_system":"1900"}

{"sheet":"Tóm tắt Ngân sách","index":0,"n_rows":28,"n_cols":7,"rows_kept":28}
[{"$nulls":6}," "]
[]
[null,"TỔNG NGÂN SÁCH ĐÁM CƯỚI",{"v":20000,"d":"20,000 ₫"}]
[]
[null,"CHI PHÍ","Phân bổ \n%","Ngân sách được phân bổ","Giá trị \nChi_phí","Thực_tế \nChi_phí"]
[null,"Đón_tiếp",{"v":0.5,"d":"50%"},{"$f":"Tổng_ngân_sách_đám_cưới*'Tóm tắt Ngân sách'!$C6","v":{"v":10000,"d":"10,000 ₫"}},{"$f":"Bảng_Đón_tiếp[[#Totals],[Chi phí ước tính]]","v":{"v":0,"d":"0 ₫"}},{"$f":"Bảng_Đón_tiếp[[#Totals],[Chi phí thực tế]]","v":{"v":0,"d":"0 ₫"}}]
[null,"Trang phục",{"v":0.1,"d":"10%"},{"$f":"Tổng_ngân_sách_đám_cưới*'Tóm tắt Ngân sách'!$C7","v":{"v":2000,"d":"2,000 ₫"}},{"$f":"Bảng_Trang_phục[[#Totals],[Chi phí ước tính]]","v":{"v":0,"d":"0 ₫"}},{"$f":"Bảng_Trang_phục[[#Totals],[Chi phí thực tế]]","v":{"v":0,"d":"0 ₫"}}]
[null,"Hoa và đồ trang trí",{"v":0.1,"d":"10%"},{"$f":"Tổng_ngân_sách_đám_cưới*'Tóm tắt Ngân sách'!$C8","v":{"v":2000,"d":"2,000 ₫"}},{"$f":"Bảng_Hoa_và_Đồ_trang_trí[[#Totals],[Chi phí ước tính]]","v":{"v":0,"d":"0 ₫"}},{"$f":"Bảng_Hoa_và_Đồ_trang_trí[[#Totals],[Chi phí thực tế]]","v":{"v":0,"d":"0 ₫"}}]
[null,"Âm nhạc",{"v":0.1,"d":"10%"},{"$f":"Tổng_ngân_sách_đám_cưới*'Tóm tắt Ngân sách'!$C9","v":{"v":2000,"d":"2,000 ₫"}},{"$f":"Bảng_Âm_nhạc[[#Totals],[Chi phí ước tính]]","v":{"v":0,"d":"0 ₫"}},{"$f":"Bảng_Âm_nhạc[[#Totals],[Chi phí thực tế]]","v":{"v":0,"d":"0 ₫"}}]
[null,"Chụp ảnh và quay phim",{"v":0.1,"d":"10%"},{"$f":"Tổng_ngân_sách_đám_cưới*'Tóm tắt Ngân sách'!$C10","v":{"v":2000,"d":"2,000 ₫"}},{"$f":"Bảng_Chụp_ảnh_và_Quay_phim[[#Totals],[Chi phí ước tính]]","v":{"v":0,"d":"0 ₫"}},{"$f":"Bảng_Chụp_ảnh_và_Quay_phim[[#Totals],[Chi phí thực tế]]","v":{"v":0,"d":"0 ₫"}}]
[null,"Quà tặng",{"v":0.03,"d":"3%"},{"$f":"Tổng_ngân_sách_đám_cưới*'Tóm tắt Ngân sách'!$C11","v":{"v":600,"d":"600 ₫"}},{"$f":"Bảng_Quà_tặng[[#Totals],[Chi phí ước tính]]","v":{"v":0,"d":"0 ₫"}},{"$f":"Bảng_Quà_tặng[[#Totals],[Chi phí thực tế]]","v":{"v":0,"d":"0 ₫"}}]
[null,"Hoa nghi lễ",{"v":0.02,"d":"2%"},{"$f":"Tổng_ngân_sách_đám_cưới*'Tóm tắt Ngân sách'!$C12","v":{"v":400,"d":"400 ₫"}},{"$f":"Bảng_Nghi_lễ[[#Totals],[Chi phí ước tính]]","v":{"v":0,"d":"0 ₫"}},{"$f":"Bảng_Nghi_lễ[[#Totals],[Chi phí thực tế]]","v":{"v":0,"d":"0 ₫"}}]
[null,"Văn phòng phẩm",{"v":0.02,"d":"2%"},{"$f":"Tổng_ngân_sách_đám_cưới*'Tóm tắt Ngân sách'!$C13","v":{"v":400,"d":"400 ₫"}},{"$f":"Bảng_Văn_phòng_phẩm[[#Totals],[Chi phí ước tính]]","v":{"v":0,"d":"0 ₫"}},{"$f":"Bảng_Văn_phòng_phẩm[[#Totals],[Chi phí thực tế]]","v":{"v":0,"d":"0 ₫"}}]
[null,"Nhẫn cưới",{"v":0.02,"d":"2%"},{"$f":"Tổng_ngân_sách_đám_cưới*'Tóm tắt Ngân sách'!$C14","v":{"v":400,"d":"400 ₫"}},{"$f":"Bảng_Nhẫn_cưới[[#Totals],[Chi phí ước tính]]","v":{"v":0,"d":"0 ₫"}},{"$f":"Bảng_Nhẫn_cưới[[#Totals],[Chi phí thực tế]]","v":{"v":0,"d":"0 ₫"}}]
[null,"Phương tiện đi lại",{"v":0.01,"d":"1%"},{"$f":"Tổng_ngân_sách_đám_cưới*'Tóm tắt Ngân sách'!$C15","v":{"v":200,"d":"200 ₫"}},{"$f":"Bảng_Phương_tiện_đi_lại[[#Totals],[Chi phí ước tính]]","v":{"v":0,"d":"0 ₫"}},{"$f":"Bảng_Phương_tiện_đi_lại[[#Totals],[Chi phí thực tế]]","v":{"v":0,"d":"0 ₫"}}]
[null,"Tổng",{"$f":"SUM(C6:C15)","v":{"v":1,"d":"100%"}},{"$f":"SUM(D6:D15)","v":{"v":20000,"d":"20,000 ₫"}},{"v":0,"d":"0 ₫"},{"v":0,"d":"0 ₫"}]
[]
[null,"ĐÓNG GÓP"]
[null,"Nguồn quỹ","Đóng góp"]
[null,"Tiết kiệm",{"v":10000,"d":"10,000 ₫"}]
[null,"Cha mẹ của cô dâu",{"v":4000,"d":"4,000 ₫"}]
[null,"Ông bà của cô dâu",{"v":2000,"d":"2,000 ₫"}]
[null,"Cha mẹ của chú rể",{"v":4000,"d":"4,000 ₫"}]
[null,"Ông bà của chú rể",{"v":4000,"d":"4,000 ₫"}]
[null,"Đóng góp khác",{"v":2000,"d":"2,000 ₫"}]
[null,"Tổng",{"$f":"SUBTOTAL(109,Bảng_Đóng_góp[Đóng góp])","v":{"v":26000,"d":"26,000 ₫"}}]
[]
[null,{"$f":"IF(Bảng_Đóng_góp[[#Totals],[Đóng góp]]<Tổng_ngân_sách_đám_cưới,\"Tạo nên sự khác biệt\",\"Quỹ bổ sung sẵn dùng\")","v":"Quỹ bổ sung sẵn dùng"},{"$f":"IF(Bảng_Đóng_góp[[#Totals],[Đóng góp]]<Tổng_ngân_sách_đám_cưới,Tổng_ngân_sách_đám_cưới-Bảng_Đóng_góp[[#Totals],[Đóng góp]],Bảng_Đóng_góp[[#Totals],[Đóng góp]]-Tổng_ngân_sách_đám_cưới)","v":{"v":6000,"d":"6,000 ₫"}}]

{"sheet":"Chi tiết Ngân sách","index":1,"n_rows":80,"n_cols":4,"rows_kept":80}
[]
[null,"ĐÓN TIẾP","Chi phí ước tính","Chi phí thực tế"]
[null,"Địa điểm và tiền thuê"]
[null,"Thực phẩm và dịch vụ"]
[null,"Đồ uống"]
[null,"Bánh ngọt"]
[null,"Chi phí khác"]
[null,"Tổng",{"$f":"SUBTOTAL(109,Bảng_Đón_tiếp[Chi phí ước tính])","v":{"v":0,"d":"0.00 ₫"}},{"$f":"SUBTOTAL(109,Bảng_Đón_tiếp[Chi phí thực tế])","v":{"v":0,"d":"0.00 ₫"}}]
[]
[null,"TRANG PHỤC","Chi phí ước tính","Chi phí thực tế"]
[null,"Áo khoác ngoài, bộ com-lê và/hoặc váy"]
[null,"Thay đổi"]
[null,"Vòng và khăn đội đầu cô dâu"]
[null,"Phụ kiện"]
[null,"Tóc và trang điểm"]
[null,"Chi phí khác"]
[null,"Tổng",{"$f":"SUBTOTAL(109,Bảng_Trang_phục[Chi phí ước tính])","v":{"v":0,"d":"0.00 ₫"}},{"$f":"SUBTOTAL(109,Bảng_Trang_phục[Chi phí thực tế])","v":{"v":0,"d":"0.00 ₫"}}]
[]
[null,"HOA VÀ ĐỒ TRANG TRÍ","Chi phí ước tính","Chi phí thực tế"]
[null,"Cắm hoa cho buổi lễ"]
[null,"Giỏ hoa và hoa cho phù dâu nhí"]
[null,"Gối buộc nhẫn"]
[null,"Hoa cô dâu"]
[null,"Hoa cài ngực"]
[null,"Hoa đeo tay"]
[null,"Trang trí nơi tiếp đón khách"]
[null,"Ánh sáng"]
[null,"Chi phí khác"]
[null,"Tổng",{"$f":"SUBTOTAL(109,Bảng_Hoa_và_Đồ_trang_trí[Chi phí ước tính])","v":{"v":0,"d":"0.00 ₫"}},{"$f":"SUBTOTAL(109,Bảng_Hoa_và_Đồ_trang_trí[Chi phí thực tế])","v":{"v":0,"d":"0.00 ₫"}}]
[]
[null,"ÂM NHẠC","Chi phí ước tính","Chi phí thực tế"]
[null,"Nhạc công buổi lễ"]
[null,"Nhạc công tiệc cocktail"]
[null,"Ban nhạc, DJ hoặc giải trí khi tiếp đón khách"]
[null,"Tiền thuê hệ thống âm thanh hoặc sàn nhảy"]
[null,"Chi phí khác"]
[null,"Tổng",{"$f":"SUBTOTAL(109,Bảng_Âm_nhạc[Chi phí ước tính])","v":{"v":0,"d":"0.00 ₫"}},{"$f":"SUBTOTAL(109,Bảng_Âm_nhạc[Chi phí thực tế])","v":{"v":0,"d":"0.00 ₫"}}]
[]
[null,"CHỤP ẢNH VÀ QUAY PHIM","Chi phí ước tính","Chi phí thực tế"]
[null,"Chụp ảnh"]
[null,"Quay phim"]
[null,"Bản in và album bổ sung"]
[null,"Chi phí khác"]
[null,"Tổng",{"$f":"SUBTOTAL(109,Bảng_Chụp_ảnh_và_Quay_phim[Chi phí ước tính])","v":{"v":0,"d":"0.00 ₫"}},{"$f":"SUBTOTAL(109,Bảng_Chụp_ảnh_và_Quay_phim[Chi phí thực tế])","v":{"v":0,"d":"0.00 ₫"}}]
[]
[null,"QUÀ TẶNG","Chi phí ước tính","Chi phí thực tế"]
[null,"Quà tặng chào mừng"]
[null,"Quà tặng bữa tiệc"]
[null,"Chi phí khác"]
[null,"Tổng",{"$f":"SUBTOTAL(109,Bảng_Quà_tặng[Chi phí ước tính])","v":{"v":0,"d":"0.00 ₫"}},{"$f":"SUBTOTAL(109,Bảng_Quà_tặng[Chi phí thực tế])","v":{"v":0,"d":"0.00 ₫"}}]
[]
[null,"HOA NGHI LỄ","Chi phí ước tính","Chi phí thực tế"]
[null,"Phí địa điểm tổ chức"]
[null,"Phí chính thức hoặc quyên góp nhà thờ"]
[null,"Chi phí khác"]
[null,"Tổng",{"$f":"SUBTOTAL(109,Bảng_Nghi_lễ[Chi phí ước tính])","v":{"v":0,"d":"0.00 ₫"}},{"$f":"SUBTOTAL(109,Bảng_Nghi_lễ[Chi phí thực tế])","v":{"v":0,"d":"0.00 ₫"}}]
[]
[null,"VĂN PHÒNG PHẨM","Chi phí ước tính","Chi phí thực tế"]
[null,"Thiệp thông báo trước về thời gian lễ cưới sẽ diễn ra"]
[null,"Thiệp mời và thiệp xác nhận RSVP"]
[null,"Chương trình"]
[null,"Thẻ ghi địa điểm và chỗ ngồi"]
[null,"Thẻ thực đơn"]
[null,"Thiệp cảm ơn"]
[null,"Bưu phí"]
[null,"Chi phí khác"]
[null,"Tổng",{"$f":"SUBTOTAL(109,Bảng_Văn_phòng_phẩm[Chi phí ước tính])","v":{"v":0,"d":"0.00 ₫"}},{"$f":"SUBTOTAL(109,Bảng_Văn_phòng_phẩm[Chi phí thực tế])","v":{"v":0,"d":"0.00 ₫"}}]
[]
[null,"NHẪN CƯỚI","Chi phí ước tính","Chi phí thực tế"]
[null,"Nhẫn cưới"]
[null,"Phụ kiện nhẫn"]
[null,"Tổng",{"$f":"SUBTOTAL(109,Bảng_Nhẫn_cưới[Chi phí ước tính])","v":{"v":0,"d":"0.00 ₫"}},{"$f":"SUBTOTAL(109,Bảng_Nhẫn_cưới[Chi phí thực tế])","v":{"v":0,"d":"0.00 ₫"}}]
[]
[null,"PHƯƠNG TIỆN ĐI LẠI","Chi phí ước tính","Chi phí thực tế"]
[null,"Thuê ô tô chính"]
[null,"Thuê ô tô cho khách"]
[null,"Phương tiện đi lại cho khách ở xa"]
[null,"Bãi đỗ xe"]
[null,"Chi phí khác"]
[null,"Tổng",{"$f":"SUBTOTAL(109,Bảng_Phương_tiện_đi_lại[Chi phí ước tính])","v":{"v":0,"d":"0.00 ₫"}},{"$f":"SUBTOTAL(109,Bảng_Phương_tiện_đi_lại[Chi phí thực tế])","v":{"v":0,"d":"0.00 ₫"}}]